[Event "Fall Chess Classic-A 2019"]
[Site "Saint Louis"]
[Date "2019.09.10"]
[Round "1.2"]
[White "Ipatov, Alexander"]
[Black "Melkumyan, Hrant"]
[Result "0-1"]
[ECO "A37"]
[WhiteElo "2650"]
[BlackElo "2653"]
[Annotator "RC"]
[PlyCount "138"]
[EventDate "2019.09.10"]
[EventType "tourn"]
[EventCountry "USA"]
[SourceTitle "playchess.com"]
[Source "ChessBase"]
[SourceQuality "1"]
[TimeControl "40/5400+30:1800+30"]

1. Nf3 {[%emt 0:00:00]} c5 {[%emt 0:00:22]} 2. c4 {[%emt 0:00:56]} Nc6 {[%emt 0:00:19]} 3. Nc3 {[%emt 0:00:54]} g6 {[%emt 0:01:03]} 4. g3 {[%emt 0:03:45]} Bg7 {[%emt 0:01:15]} 5. Bg2 {[%emt 0:00:19]} e5 {[%emt 0:02:47]} 6. d3 {[%emt 0:02:00]} Nge7 {[%emt 0:00:13]} 7. O-O {[%emt 0:02:47]} d6 {[%emt 0:00:43]} 8. Rb1 {[%emt 0:00:47]} O-O {[%emt 0:01:25]} 9. a3 {[%emt 0:01:40]} a5 {[%emt 0:01:01]} 10. Bd2 {[%emt 0:06:31]} h6 {[%emt 0:02:05]} 11. Ne1 {[%emt 0:07:24]} Be6 {[%emt 0:00:17]} 12. Nc2 {[%emt 0:07:05]} d5 {[%emt 0:09:07]} 13. cxd5 {[%emt 0:04:46]} Nxd5 {[%emt 0:00:17]} 14. Ne3 {[%emt 0:00:04]} Nde7 {[%emt 0:01:31]} 15. Na4 {[%emt 0:03:17]} b6 {[%emt 0:07:03]} 16. b4 {[%emt 0:00:31]} cxb4 {[%emt 0:01:30]} 17. axb4 {[%emt 0:00:04]} b5 {[%emt 0:01:58]} 18. Nc5 {[%emt 0:09:03]} Ba2 {[%emt 0:00:45]} 19. bxa5 {[%emt 0:16:23]} Bxb1 {[%emt 0:00:50]} 20. Qxb1 {[%emt 0:00:01]} Nd4 {[%emt 0:00:33]} 21. Re1 {[%emt 0:01:25]} Ra7 {[%emt 0:12:37]} 22. Kf1 {[%emt 0:01:01]} Nec6 {[%emt 0:05:30]} 23. Nd5 {[%emt 0:04:52]} Nxa5 {[%emt 0:06:09]} 24. e3 {[%emt 0:00:55]} Nf5 {[%emt 0:09:12]} 25. Qxb5 {[%emt 0:02:30]} Nd6 {[%emt 0:00:08]} 26. Qa4 {[%emt 0:07:03]} Qe8 {[%emt 0:01:34]} 27. Qh4 {[%emt 0:05:34]} Qb5 {[%emt 0:04:34]} 28. Kg1 {[%emt 0:05:05]} Nf5 {[%emt 0:02:30]} 29. Qb4 {[%emt 0:00:43]} Qxb4 {[%emt 0:02:08]} 30. Bxb4 {[%emt 0:01:35]} Nc6 {[%emt 0:00:38]} 31. Bc3 {[%emt 0:02:14]} Nce7 {[%emt 0:03:53]} 32. Rb1 {[%emt 0:02:19]} Rc8 {[%emt 0:01:11]} 33. Nxe7+ {[%emt 0:01:05]} Rxe7 {[%emt 0:01:10]} 34. Ne4 {[%emt 0:00:36]} Rd7 {[%emt 0:01:53]} 35. Bf1 {[%emt 0:00:59]} Nd6 {[%emt 0:03:29]} 36. Nxd6 {[%emt 0:00:03]} Rxd6 {[%emt 0:03:28]} 37. Rb3 {[%emt 0:00:03]} Rdc6 {[%emt 0:00:45]} 38. Bb2 {[%emt 0:00:01]} Rc2 {[%emt 0:00:44]} 39. Bh3 {[%emt 0:02:05]} Ra8 {[%emt 0:02:01]} 40. Ba3 {[%emt 0:00:00]} Bf8 {[%emt 0:00:00]} 41. Bb2 {[%emt 0:01:52]} Bd6 {[%emt 0:03:06]} 42. d4 {[%emt 0:13:23]} Rb8 {[%emt 0:02:01]} 43. Rxb8+ {[%emt 0:00:04]} Bxb8 {[%emt 0:00:10]} 44. Ba3 {[%emt 0:00:01]} exd4 {[%emt 0:00:23]} 45. exd4 {[%emt 0:00:01]} Ba7 {[%emt 0:00:10]} 46. Bc5 {[%emt 0:00:03]} Bxc5 {[%emt 0:00:10]} 47. dxc5 {[%emt 0:00:00]} Rxc5 {[%emt 0:00:16]} 48. Bg4 {[%emt 0:02:41]} g5 {[%emt 0:02:53]} 49. Bf3 {[%emt 0:00:22]} Kg7 {[%emt 0:00:10]} 50. Kg2 {[%emt 0:00:42]} Kf6 {[%emt 0:00:47]} 51. Bb7 {[%emt 0:01:27]} Ke5 {[%emt 0:00:10]} 52. Kf3 {[%emt 0:00:05]} Rc7 {[%emt 0:00:48]} 53. Ba6 {[%emt 0:01:01]} Rc3+ {[%emt 0:01:57]} 54. Kg2 {[%emt 0:01:28]} Kd4 {[%emt 0:00:32]} 55. Be2 {[%emt 0:02:06]} Rc6 {[%emt 0:01:29]} 56. Bh5 {[%emt 0:02:48]} Rf6 {[%emt 0:00:12]} 57. Be2 {[%emt 0:02:21]} Kc3 {[%emt 0:00:22]} 58. Kf1 {[%emt 0:00:32]} Kd2 {[%emt 0:00:18]} 59. Bc4 {[%emt 0:00:22]} Rf5 {[%emt 0:00:10]} 60. Kg2 {[%emt 0:04:58]} Ke1 {[%emt 0:01:07]} 61. f3 {[%emt 0:00:02]} Kd2 {[%emt 0:00:57]} 62. Kf2 {[%emt 0:00:48]} Kc3 {[%emt 0:00:07]} 63. Ba2 {[%emt 0:01:25]} Kd4 {[%emt 0:00:44]} 64. h4 {[%emt 0:01:33]} gxh4 {[%emt 0:02:47]} 65. gxh4 {[%emt 0:00:14]} Rf4 {[%emt 0:00:08]} 66. Kg3 {[%emt 0:01:08]} Ke3 {[%emt 0:00:53]} 67. Bd5 {[%emt 0:00:09]} f5 {[%emt 0:02:04]} 68. h5 {[%emt 0:02:26]} Ra4 {[%emt 0:00:12]} 69. Bc6 {[%emt 0:01:18]} f4+ {[%emt 0:00:08]} 0-1

[Event "Fall Chess Classic-A 2019"]
[Site "Saint Louis"]
[Date "2019.09.10"]
[Round "1.4"]
[White "Durarbayli, Vasif"]
[Black "Smirin, Ilia"]
[Result "1-0"]
[ECO "A40"]
[WhiteElo "2626"]
[BlackElo "2599"]
[Annotator "RC"]
[PlyCount "76"]
[EventDate "2019.09.10"]
[EventType "tourn"]
[EventCountry "USA"]
[SourceTitle "playchess.com"]
[Source "ChessBase"]
[SourceQuality "1"]
[TimeControl "40/5400+30:1800+30"]

1. d4 {[%emt 0:00:00]} Nf6 {[%emt 0:00:30]} 2. c4 {[%emt 0:00:00]} e6 {[%emt 0:00:14]} 3. g3 {[%emt 0:00:27]} c5 {[%emt 0:00:23]} 4. Nf3 {[%emt 0:02:51]} cxd4 {[%emt 0:00:35]} 5. Nxd4 {[%emt 0:00:14]} d5 {[%emt 0:00:28]} 6. Bg2 {[%emt 0:00:52]} e5 {[%emt 0:00:29]} 7. Nf3 {[%emt 0:02:03]} d4 {[%emt 0:00:50]} 8. O-O {[%emt 0:00:22]} Nc6 {[%emt 0:00:04]} 9. e3 {[%emt 0:00:08]} Be7 {[%emt 0:00:23]} 10. exd4 {[%emt 0:00:24]} exd4 {[%emt 0:00:14]} 11. b4 {[%emt 0:00:18]} Bxb4 {[%emt 0:08:52]} 12. Nxd4 {[%emt 0:10:42]} O-O {[%emt 0:05:47]} 13. Nxc6 {[%emt 0:07:16]} Qxd1 {[%emt 0:05:28]} 14. Rxd1 {[%emt 0:00:49]} bxc6 {[%emt 0:00:03]} 15. Ba3 {[%emt 0:24:07]} Rb8 {[%emt 0:03:18]} 16. Bxc6 {[%emt 0:00:16]} Bh3 {[%emt 0:18:34]} 17. Bxb4 {[%emt 0:09:01]} Rxb4 {[%emt 0:00:14]} 18. Nd2 {[%emt 0:02:50]} h5 {[%emt 0:05:28]} 19. Rab1 {[%emt 0:05:41]} Rfb8 {[%emt 0:16:26]} 20. Rb3 {[%emt 0:06:43]} R8b6 {[%emt 0:03:58]} 21. Bf3 {[%emt 0:06:17]} Ra4 {[%emt 0:02:39]} 22. c5 {[%emt 0:00:58]} Rba6 {[%emt 0:08:53]} 23. c6 {[%emt 0:01:48]} Rxa2 {[%emt 0:00:15]} 24. Ne4 {[%emt 0:03:10]} Nxe4 {[%emt 0:03:37]} 25. Bxe4 {[%emt 0:02:12]} g6 {[%emt 0:00:08]} 26. c7 {[%emt 0:01:25]} Kg7 {[%emt 0:01:45]} 27. Bg2 {[%emt 0:04:02]} Bc8 {[%emt 0:00:46]} 28. Rb8 {[%emt 0:01:01]} Rd6 {[%emt 0:02:44]} 29. Rf1 {[%emt 0:00:26]} Be6 {[%emt 0:00:07]} 30. c8=Q {[%emt 0:00:29]} Bxc8 {[%emt 0:00:03]} 31. Rxc8 {[%emt 0:00:04]} Rdd2 {[%emt 0:00:13]} 32. Rc5 {[%emt 0:00:31]} a5 {[%emt 0:00:21]} 33. Bd5 {[%emt 0:00:11]} Ra3 {[%emt 0:00:14]} 34. Rb1 {[%emt 0:00:24]} Rad3 {[%emt 0:00:17]} 35. Bc6 {[%emt 0:01:44]} Ra3 {[%emt 0:00:42]} 36. Rc4 {[%emt 0:02:48]} Raa2 {[%emt 0:00:41]} 37. Rf4 {[%emt 0:00:35]} f5 {[%emt 0:00:10]} 38. h4 {[%emt 0:00:12]} Rac2 {[%emt 0:00:18]} 1-0

[Event "Fall Chess Classic-A 2019"]
[Site "Saint Louis"]
[Date "2019.09.12"]
[Round "3.2"]
[White "Lenderman, Aleksandr"]
[Black "Bortnyk, Olexandr"]
[Result "1-0"]
[ECO "B07"]
[WhiteElo "2645"]
[BlackElo "2602"]
[Annotator "RC"]
[PlyCount "119"]
[EventDate "2019.09.10"]
[EventType "tourn"]
[EventCountry "USA"]
[SourceTitle "playchess.com"]
[Source "ChessBase"]
[SourceQuality "1"]
[TimeControl "40/5400+30:1800+30"]

1. d4 {[%emt 0:00:00]} d6 {[%emt 0:02:57]} 2. e4 {[%emt 0:00:00]} Nf6 {[%emt 0:00:09]} 3. Nc3 {[%emt 0:00:00]} e5 {[%emt 0:00:04]} 4. dxe5 {[%emt 0:00:00]} dxe5 {[%emt 0:00:05]} 5. Qxd8+ {[%emt 0:00:00]} Kxd8 {[%emt 0:00:07]} 6. Bc4 {[%emt 0:00:01]} Ke8 {[%emt 0:06:03]} 7. Nf3 {[%emt 0:00:27]} Bd6 {[%emt 0:00:25]} 8. h3 {[%emt 0:00:07]} c6 {[%emt 0:00:49]} 9. Bg5 {[%emt 0:04:10]} Nbd7 {[%emt 0:01:08]} 10. O-O-O {[%emt 0:00:24]} Bc7 {[%emt 0:01:58]} 11. Rhe1 {[%emt 0:10:56]} h6 {[%emt 0:02:11]} 12. Be3 {[%emt 0:01:17]} b5 {[%emt 0:04:42]} 13. Bf1 {[%emt 0:01:36]} a5 {[%emt 0:06:42]} 14. Nd2 {[%emt 0:07:30]} a4 {[%emt 0:01:52]} 15. a3 {[%emt 0:00:44]} Nf8 {[%emt 0:02:25]} 16. Na2 {[%emt 0:06:04]} Ne6 {[%emt 0:03:09]} 17. c4 {[%emt 0:09:00]} Bd7 {[%emt 0:03:01]} 18. cxb5 {[%emt 0:04:25]} cxb5 {[%emt 0:00:25]} 19. Nc3 {[%emt 0:00:04]} Rb8 {[%emt 0:19:52]} 20. Nf3 {[%emt 0:04:36]} b4 {[%emt 0:06:16]} 21. axb4 {[%emt 0:01:19]} Rxb4 {[%emt 0:02:18]} 22. Nd5 {[%emt 0:00:05]} Rb7 {[%emt 0:05:41]} 23. Ba6 {[%emt 0:06:22]} Rb8 {[%emt 0:00:37]} 24. Nxc7+ {[%emt 0:00:28]} Nxc7 {[%emt 0:00:04]} 25. Bc4 {[%emt 0:00:21]} Ne6 {[%emt 0:07:32]} 26. Nxe5 {[%emt 0:00:38]} Ke7 {[%emt 0:04:59]} 27. Rxd7+ {[%emt 0:16:34]} Nxd7 {[%emt 0:00:05]} 28. Nc6+ {[%emt 0:00:03]} Kf6 {[%emt 0:00:45]} 29. Nxb8 {[%emt 0:01:48]} Rxb8 {[%emt 0:00:06]} 30. Re2 {[%emt 0:13:21]} Ne5 {[%emt 0:03:40]} 31. Rc2 {[%emt 0:00:21]} Rb4 {[%emt 0:00:44]} 32. Bd5 {[%emt 0:02:05]} Nf4 {[%emt 0:02:16]} 33. Bxf4 {[%emt 0:01:09]} Nd3+ {[%emt 0:00:01]} 34. Kd2 {[%emt 0:00:09]} Nxf4 {[%emt 0:00:05]} 35. Bc6 {[%emt 0:00:41]} Ke5 {[%emt 0:01:44]} 36. Kc3 {[%emt 0:04:46]} Rb3+ {[%emt 0:00:54]} 37. Kc4 {[%emt 0:00:21]} Nxg2 {[%emt 0:00:05]} 38. Bxa4 {[%emt 0:00:10]} Rxh3 {[%emt 0:00:03]} 39. b4 {[%emt 0:01:18]} Ra3 {[%emt 0:04:03]} 40. Bc6 {[%emt 0:00:00]} Nf4 {[%emt 0:00:00]} 41. b5 {[%emt 0:02:10]} Ne6 {[%emt 0:06:43]} 42. b6 {[%emt 0:02:38]} Nd8 {[%emt 0:05:08]} 43. Bd5 {[%emt 0:00:48]} Ra1 {[%emt 0:00:22]} 44. Rb2 {[%emt 0:05:20]} Rc1+ {[%emt 0:01:06]} 45. Kb5 {[%emt 0:03:02]} f5 {[%emt 0:01:06]} 46. exf5 {[%emt 0:03:43]} Kxf5 {[%emt 0:02:32]} 47. Re2 {[%emt 0:00:45]} Rb1+ {[%emt 0:13:16]} 48. Kc5 {[%emt 0:00:21]} Rc1+ {[%emt 0:00:06]} 49. Kd6 {[%emt 0:00:07]} Rd1 {[%emt 0:00:13]} 50. Re7 {[%emt 0:00:47]} Rd2 {[%emt 0:00:46]} 51. Rxg7 {[%emt 0:06:08]} Rxf2 {[%emt 0:00:27]} 52. Rd7 {[%emt 0:00:33]} Rb2 {[%emt 0:00:55]} 53. Kc7 {[%emt 0:00:07]} Ne6+ {[%emt 0:00:11]} 54. Bxe6+ {[%emt 0:00:04]} Kxe6 {[%emt 0:00:06]} 55. Rd6+ {[%emt 0:00:02]} Ke7 {[%emt 0:00:24]} 56. Rxh6 {[%emt 0:00:05]} Rc2+ {[%emt 0:00:25]} 57. Rc6 {[%emt 0:00:04]} Rd2 {[%emt 0:00:04]} 58. b7 {[%emt 0:00:05]} Rd7+ {[%emt 0:00:04]} 59. Kb6 {[%emt 0:00:04]} Rd8 {[%emt 0:00:03]} 60. Rc8 {[%emt 0:00:10]} 1-0

[Event "Fall Chess Classic-A 2019"]
[Site "Saint Louis"]
[Date "2019.09.13"]
[Round "4.1"]
[White "Robson, Ray"]
[Black "Smirin, Ilia"]
[Result "1-0"]
[ECO "C97"]
[WhiteElo "2653"]
[BlackElo "2599"]
[Annotator "RC"]
[PlyCount "110"]
[EventDate "2019.09.10"]
[EventType "tourn"]
[EventCountry "USA"]
[SourceTitle "playchess.com"]
[Source "ChessBase"]
[SourceQuality "1"]
[TimeControl "40/5400+30:1800+30"]

1. e4 {[%emt 0:08:01]} e5 {[%emt 0:00:00]} 2. Nf3 {[%emt 0:00:18]} Nc6 {[%emt 0:00:00]} 3. Bb5 {[%emt 0:00:22]} a6 {[%emt 0:00:13]} 4. Ba4 {[%emt 0:00:13]} Nf6 {[%emt 0:00:07]} 5. O-O {[%emt 0:00:23]} Be7 {[%emt 0:00:16]} 6. Re1 {[%emt 0:00:28]} b5 {[%emt 0:00:10]} 7. Bb3 {[%emt 0:00:07]} d6 {[%emt 0:00:09]} 8. c3 {[%emt 0:00:32]} O-O {[%emt 0:00:14]} 9. h3 {[%emt 0:00:16]} Na5 {[%emt 0:00:21]} 10. Bc2 {[%emt 0:00:53]} c5 {[%emt 0:00:04]} 11. d4 {[%emt 0:00:23]} Qc7 {[%emt 0:00:22]} 12. d5 {[%emt 0:00:56]} Bd7 {[%emt 0:00:15]} 13. b3 {[%emt 0:04:00]} Rfe8 {[%emt 0:02:10]} 14. Nbd2 {[%emt 0:02:00]} g6 {[%emt 0:01:03]} 15. Nf1 {[%emt 0:01:16]} Nh5 {[%emt 0:00:11]} 16. Ng3 {[%emt 0:01:17]} Nxg3 {[%emt 0:01:53]} 17. fxg3 {[%emt 0:00:04]} Nb7 {[%emt 0:00:44]} 18. Be3 {[%emt 0:08:57]} c4 {[%emt 0:02:10]} 19. b4 {[%emt 0:02:08]} a5 {[%emt 0:01:06]} 20. a4 {[%emt 0:15:54]} Rec8 {[%emt 0:27:46]} 21. axb5 {[%emt 0:11:09]} Bxb5 {[%emt 0:00:44]} 22. Ba4 {[%emt 0:01:25]} Qd7 {[%emt 0:03:45]} 23. Bxb5 {[%emt 0:01:28]} Qxb5 {[%emt 0:00:05]} 24. Ra4 {[%emt 0:05:33]} Bd8 {[%emt 0:08:22]} 25. Nd2 {[%emt 0:01:04]} Bb6 {[%emt 0:12:03]} 26. Bxb6 {[%emt 0:00:58]} Qxb6+ {[%emt 0:00:03]} 27. Kh2 {[%emt 0:00:16]} axb4 {[%emt 0:08:54]} 28. Nxc4 {[%emt 0:05:02]} Qc7 {[%emt 0:01:44]} 29. Rxb4 {[%emt 0:00:24]} Rab8 {[%emt 0:00:11]} 30. Qf3 {[%emt 0:09:07]} Nc5 {[%emt 0:02:18]} 31. Qf6 {[%emt 0:04:49]} Rd8 {[%emt 0:02:25]} 32. Rxb8 {[%emt 0:04:59]} Qxb8 {[%emt 0:00:39]} 33. Rf1 {[%emt 0:01:00]} Rd7 {[%emt 0:03:21]} 34. Qf3 {[%emt 0:00:51]} Qd8 {[%emt 0:02:58]} 35. Qe3 {[%emt 0:04:16]} Qc7 {[%emt 0:03:04]} 36. Rb1 {[%emt 0:00:56]} Nb7 {[%emt 0:04:39]} 37. Qa7 {[%emt 0:00:56]} Kg7 {[%emt 0:02:04]} 38. Rb4 {[%emt 0:00:50]} h5 {[%emt 0:01:25]} 39. Qe3 {[%emt 0:02:23]} Qc5 {[%emt 0:01:32]} 40. Qf3 {[%emt 0:00:00]} Qc7 {[%emt 0:00:00]} 41. g4 {[%emt 0:06:44]} hxg4 {[%emt 0:02:31]} 42. Qxg4 {[%emt 0:00:08]} Qd8 {[%emt 0:00:32]} 43. Rb1 {[%emt 0:05:16]} Rc7 {[%emt 0:04:22]} 44. Ne3 {[%emt 0:01:21]} Nc5 {[%emt 0:00:07]} 45. Nf5+ {[%emt 0:02:03]} Kf8 {[%emt 0:00:41]} 46. Qh4 {[%emt 0:00:42]} Ke8 {[%emt 0:01:36]} 47. Rb8 {[%emt 0:02:33]} Qxb8 {[%emt 0:00:14]} 48. Qh8+ {[%emt 0:00:07]} Kd7 {[%emt 0:00:03]} 49. Qxb8 {[%emt 0:00:08]} gxf5 {[%emt 0:00:03]} 50. exf5 {[%emt 0:00:38]} Rc8 {[%emt 0:00:26]} 51. Qa7+ {[%emt 0:05:48]} Rc7 {[%emt 0:00:25]} 52. Qb6 {[%emt 0:00:45]} Ne4 {[%emt 0:00:26]} 53. c4 {[%emt 0:01:11]} Nc5 {[%emt 0:01:34]} 54. h4 {[%emt 0:01:35]} Rc8 {[%emt 0:00:41]} 55. f6 {[%emt 0:01:58]} Ne4 {[%emt 0:00:35]} 1-0

[Event "Fall Chess Classic-A 2019"]
[Site "Saint Louis"]
[Date "2019.09.14"]
[Round "5.2"]
[White "Durarbayli, Vasif"]
[Black "Ipatov, Alexander"]
[Result "0-1"]
[ECO "B00"]
[WhiteElo "2626"]
[BlackElo "2650"]
[Annotator "RC"]
[PlyCount "81"]
[EventDate "2019.09.10"]
[EventType "tourn"]
[EventCountry "USA"]
[SourceTitle "playchess.com"]
[Source "ChessBase"]
[SourceQuality "1"]
[TimeControl "40/5400+30:1800+30"]

1. e4 {[%emt 0:00:00]} b6 {[%emt 0:00:00]} 2. d4 {[%emt 0:02:27]} Bb7 {[%emt 0:00:00]} 3. Bd3 {[%emt 0:00:07]} g6 {[%emt 0:00:04]} 4. c3 {[%emt 0:14:21]} Bg7 {[%emt 0:00:22]} 5. Bg5 {[%emt 0:00:38]} d6 {[%emt 0:02:11]} 6. Nf3 {[%emt 0:02:34]} Nd7 {[%emt 0:00:17]} 7. Nbd2 {[%emt 0:02:56]} h6 {[%emt 0:09:04]} 8. Bh4 {[%emt 0:00:52]} Ngf6 {[%emt 0:01:18]} 9. e5 {[%emt 0:16:11]} dxe5 {[%emt 0:00:55]} 10. dxe5 {[%emt 0:00:15]} Nc5 {[%emt 0:00:03]} 11. Bb5+ {[%emt 0:03:37]} Nfd7 {[%emt 0:00:13]} 12. b4 {[%emt 0:02:47]} Ne6 {[%emt 0:04:25]} 13. Bg3 {[%emt 0:03:07]} c5 {[%emt 0:07:19]} 14. O-O {[%emt 0:06:15]} Nc7 {[%emt 0:12:26]} 15. Bc4 {[%emt 0:00:10]} b5 {[%emt 0:07:30]} 16. Bb3 {[%emt 0:00:45]} c4 {[%emt 0:05:33]} 17. Bc2 {[%emt 0:00:21]} Ne6 {[%emt 0:00:08]} 18. a4 {[%emt 0:00:59]} a6 {[%emt 0:00:10]} 19. h4 {[%emt 0:05:27]} Nb6 {[%emt 0:04:12]} 20. Re1 {[%emt 0:01:49]} O-O {[%emt 0:01:57]} 21. h5 {[%emt 0:02:25]} g5 {[%emt 0:00:42]} 22. Qe2 {[%emt 0:04:00]} Nxa4 {[%emt 0:01:46]} 23. Bxa4 {[%emt 0:02:53]} bxa4 {[%emt 0:00:13]} 24. Nxc4 {[%emt 0:00:36]} Rc8 {[%emt 0:02:21]} 25. Na5 {[%emt 0:00:26]} Ba8 {[%emt 0:00:25]} 26. Rec1 {[%emt 0:02:16]} Qb6 {[%emt 0:06:32]} 27. Rxa4 {[%emt 0:00:49]} Qb5 {[%emt 0:02:39]} 28. Ra2 {[%emt 0:02:28]} Rfd8 {[%emt 0:00:49]} 29. Nb3 {[%emt 0:03:55]} Bd5 {[%emt 0:06:09]} 30. Nbd4 {[%emt 0:02:23]} Qxe2 {[%emt 0:00:24]} 31. Rxe2 {[%emt 0:00:07]} g4 {[%emt 0:00:02]} 32. Nf5 {[%emt 0:10:56]} gxf3 {[%emt 0:00:58]} 33. Re3 {[%emt 0:00:01]} Bf8 {[%emt 0:07:10]} 34. gxf3 {[%emt 0:00:05]} Ng5 {[%emt 0:01:23]} 35. Nh4 {[%emt 0:03:04]} e6 {[%emt 0:00:27]} 36. Rce1 {[%emt 0:02:58]} Rc4 {[%emt 0:00:35]} 37. Kh2 {[%emt 0:00:26]} Rdc8 {[%emt 0:00:19]} 38. f4 {[%emt 0:00:05]} Ne4 {[%emt 0:00:12]} 39. f5 {[%emt 0:00:17]} Nxg3 {[%emt 0:01:21]} 40. Kxg3 {[%emt 0:00:00]} Rxc3 {[%emt 0:00:00]} 41. f6 {[%emt 0:01:33]} 0-1

[Event "Fall Chess Classic-A 2019"]
[Site "Saint Louis"]
[Date "2019.09.14"]
[Round "5.3"]
[White "Van Foreest, Jorden"]
[Black "Bortnyk, Olexandr"]
[Result "1-0"]
[ECO "B04"]
[WhiteElo "2622"]
[BlackElo "2602"]
[Annotator "RC"]
[PlyCount "51"]
[EventDate "2019.09.10"]
[EventType "tourn"]
[EventCountry "USA"]
[SourceTitle "playchess.com"]
[Source "ChessBase"]
[SourceQuality "1"]
[TimeControl "40/5400+30:1800+30"]

1. e4 {[%emt 0:00:00]} Nf6 {[%emt 0:00:19]} 2. e5 {[%emt 0:00:00]} Nd5 {[%emt 0:00:01]} 3. d4 {[%emt 0:00:11]} d6 {[%emt 0:00:06]} 4. Nf3 {[%emt 0:00:24]} dxe5 {[%emt 0:00:10]} 5. Nxe5 {[%emt 0:00:11]} c6 {[%emt 0:00:06]} 6. h3 {[%emt 0:00:44]} g6 {[%emt 0:02:02]} 7. Bc4 {[%emt 0:00:13]} Bg7 {[%emt 0:00:11]} 8. O-O {[%emt 0:00:09]} O-O {[%emt 0:00:14]} 9. Re1 {[%emt 0:00:09]} Nd7 {[%emt 0:00:05]} 10. Nf3 {[%emt 0:00:14]} a5 {[%emt 0:00:47]} 11. a4 {[%emt 0:02:06]} N7b6 {[%emt 0:00:46]} 12. Bb3 {[%emt 0:05:02]} Bf5 {[%emt 0:05:00]} 13. Bg5 {[%emt 0:05:20]} Re8 {[%emt 0:01:14]} 14. Qd2 {[%emt 0:02:49]} Qc7 {[%emt 0:05:27]} 15. Na3 {[%emt 0:02:59]} Qd7 {[%emt 0:23:55]} 16. Rad1 {[%emt 0:05:53]} h6 {[%emt 0:13:26]} 17. Bxh6 {[%emt 0:09:22]} Bxh3 {[%emt 0:00:14]} 18. Ne5 {[%emt 0:06:09]} Bxe5 {[%emt 0:00:24]} 19. dxe5 {[%emt 0:00:14]} Be6 {[%emt 0:10:39]} 20. Qg5 {[%emt 0:04:36]} Qc7 {[%emt 0:00:50]} 21. Rd4 {[%emt 0:00:08]} Bf5 {[%emt 0:01:22]} 22. c4 {[%emt 0:07:01]} Nb4 {[%emt 0:00:22]} 23. Re3 {[%emt 0:01:06]} Nd7 {[%emt 0:02:25]} 24. Qxf5 {[%emt 0:02:21]} Qxe5 {[%emt 0:05:58]} 25. Qxe5 {[%emt 0:00:37]} Nxe5 {[%emt 0:00:07]} 26. Rxe5 {[%emt 0:00:05]} 1-0

[Event "Fall Chess Classic-A 2019"]
[Site "Saint Louis"]
[Date "2019.09.14"]
[Round "5.5"]
[White "Smirin, Ilia"]
[Black "Akobian, Varuzhan"]
[Result "1-0"]
[ECO "C07"]
[WhiteElo "2599"]
[BlackElo "2618"]
[Annotator "RC"]
[PlyCount "101"]
[EventDate "2019.09.10"]
[EventType "tourn"]
[EventCountry "USA"]
[SourceTitle "playchess.com"]
[Source "ChessBase"]
[SourceQuality "1"]
[TimeControl "40/5400+30:1800+30"]

1. e4 {[%emt 0:02:51]} e6 {[%emt 0:00:04]} 2. d4 {[%emt 0:00:18]} d5 {[%emt 0:00:20]} 3. Nd2 {[%emt 0:00:05]} c5 {[%emt 0:00:44]} 4. Ngf3 {[%emt 0:00:16]} cxd4 {[%emt 0:01:56]} 5. Nxd4 {[%emt 0:00:31]} Nc6 {[%emt 0:00:07]} 6. Bb5 {[%emt 0:00:42]} Bd7 {[%emt 0:00:10]} 7. Nxc6 {[%emt 0:00:06]} bxc6 {[%emt 0:00:05]} 8. Bd3 {[%emt 0:00:20]} Qc7 {[%emt 0:02:26]} 9. Qe2 {[%emt 0:10:13]} Ne7 {[%emt 0:00:42]} 10. g3 {[%emt 0:04:33]} Ng6 {[%emt 0:21:51]} 11. f4 {[%emt 0:01:18]} Bc5 {[%emt 0:09:01]} 12. Nb3 {[%emt 0:15:11]} Bb6 {[%emt 0:00:15]} 13. Be3 {[%emt 0:00:19]} O-O {[%emt 0:05:51]} 14. O-O {[%emt 0:04:49]} c5 {[%emt 0:03:03]} 15. c4 {[%emt 0:00:20]} d4 {[%emt 0:03:48]} 16. Bf2 {[%emt 0:13:35]} f5 {[%emt 0:03:32]} 17. Qh5 {[%emt 0:01:36]} Rae8 {[%emt 0:04:55]} 18. Rae1 {[%emt 0:03:11]} Qc8 {[%emt 0:01:43]} 19. exf5 {[%emt 0:08:48]} exf5 {[%emt 0:00:16]} 20. Rxe8 {[%emt 0:02:42]} Bxe8 {[%emt 0:10:45]} 21. Qd1 {[%emt 0:00:33]} Bc6 {[%emt 0:00:49]} 22. Be2 {[%emt 0:08:13]} Qb7 {[%emt 0:01:45]} 23. Be1 {[%emt 0:01:32]} Re8 {[%emt 0:00:40]} 24. Bd2 {[%emt 0:01:16]} Ne7 {[%emt 0:08:06]} 25. Nc1 {[%emt 0:02:18]} Be4 {[%emt 0:08:14]} 26. Nd3 {[%emt 0:00:58]} Nc6 {[%emt 0:00:01]} 27. a3 {[%emt 0:01:19]} a5 {[%emt 0:01:15]} 28. Re1 {[%emt 0:01:37]} Ba7 {[%emt 0:00:44]} 29. Bf3 {[%emt 0:01:41]} Qd7 {[%emt 0:10:36]} 30. Nf2 {[%emt 0:01:10]} Bxf3 {[%emt 0:00:10]} 31. Rxe8+ {[%emt 0:00:35]} Qxe8 {[%emt 0:00:04]} 32. Qxf3 {[%emt 0:00:04]} g6 {[%emt 0:00:18]} 33. Qd5+ {[%emt 0:00:56]} Kg7 {[%emt 0:00:15]} 34. Kf1 {[%emt 0:00:20]} a4 {[%emt 0:00:06]} 35. g4 {[%emt 0:02:30]} Ne7 {[%emt 0:01:03]} 36. Qb7 {[%emt 0:06:07]} Bb8 {[%emt 0:00:02]} 37. gxf5 {[%emt 0:00:07]} gxf5 {[%emt 0:00:07]} 38. Qb6 {[%emt 0:00:46]} Ng6 {[%emt 0:02:36]} 39. Qxc5 {[%emt 0:00:23]} Qd7 {[%emt 0:00:28]} 40. Nd3 {[%emt 0:00:00]} Kh6 {[%emt 0:00:00]} 41. Qb5 {[%emt 0:06:12]} Qc8 {[%emt 0:03:12]} 42. Qd5 {[%emt 0:02:49]} Ba7 {[%emt 0:03:34]} 43. c5 {[%emt 0:02:09]} Bb8 {[%emt 0:04:03]} 44. Ke2 {[%emt 0:05:11]} Qe8+ {[%emt 0:00:21]} 45. Kd1 {[%emt 0:00:07]} Qc8 {[%emt 0:05:26]} 46. Qxd4 {[%emt 0:01:05]} Qc6 {[%emt 0:00:07]} 47. Kc2 {[%emt 0:01:15]} Bc7 {[%emt 0:01:26]} 48. Nb4 {[%emt 0:01:02]} Qf3 {[%emt 0:01:21]} 49. Nd5 {[%emt 0:00:36]} Bd8 {[%emt 0:00:05]} 50. c6 {[%emt 0:01:01]} Qb3+ {[%emt 0:00:31]} 51. Kc1 {[%emt 0:00:15]} 1-0